[Event "Early-Titled-Tuesday-Blitz-October-17-2023"]
[Site "Chess.com"]
[Date "2023.10.17"]
[Round "3"]
[White "Baku_Boulevard"]
[Black "suyu28"]
[Result "0-1"]
[WhiteElo "3002"]
[BlackElo "2734"]
[TimeControl "180+1"]
[EndTime "8:28:09 PDT"]
[Termination "suyu28 won by resignation"]

1. e4 {[%clk 0:03:00.9]} 1... c5 {[%clk 0:03:00.1]} 2. Nf3 {[%clk 0:03:01]} 2...
d6 {[%clk 0:03:00.8]} 3. Nc3 {[%clk 0:03:01.7]} 3... a6 {[%clk 0:02:54.1]} 4. g3
{[%clk 0:03:01.2]} 4... Nf6 {[%clk 0:02:50.3]} 5. e5 {[%clk 0:03:01.5]} 5...
dxe5 {[%clk 0:02:50.7]} 6. Nxe5 {[%clk 0:03:02.4]} 6... Qc7 {[%clk 0:02:50.9]}
7. d4 {[%clk 0:03:02.5]} 7... e6 {[%clk 0:02:49.8]} 8. Bf4 {[%clk 0:03:01.6]}
8... Qb6 {[%clk 0:02:28.7]} 9. Nc4 {[%clk 0:03:00.9]} 9... Qc6 {[%clk 0:02:22]}
10. Rg1 {[%clk 0:02:59.8]} 10... cxd4 {[%clk 0:02:02.8]} 11. Qxd4 {[%clk
0:02:59.3]} 11... Bc5 {[%clk 0:02:01.3]} 12. Nd6+ {[%clk 0:02:58.1]} 12... Ke7
{[%clk 0:01:58.4]} 13. Nxc8+ {[%clk 0:02:45]} 13... Rxc8 {[%clk 0:01:59.3]} 14.
Qd2 {[%clk 0:02:38.8]} 14... Ne4 {[%clk 0:01:50]} 15. Nxe4 {[%clk 0:02:34.7]}
15... Qxe4+ {[%clk 0:01:50.1]} 16. Be2 {[%clk 0:02:34]} 16... Rd8 {[%clk
0:01:33]} 17. Qc1 {[%clk 0:02:10.1]} 17... Nc6 {[%clk 0:01:33]} 18. c3 {[%clk
0:02:08]} 18... Rac8 {[%clk 0:01:17.1]} 19. Qb1 {[%clk 0:02:07.8]} 19... Qxb1+
{[%clk 0:00:41.8]} 20. Rxb1 {[%clk 0:02:07.7]} 20... h6 {[%clk 0:00:42.3]} 21.
Rd1 {[%clk 0:02:07.6]} 21... Rxd1+ {[%clk 0:00:41.7]} 22. Bxd1 {[%clk
0:02:07.6]} 22... Bd6 {[%clk 0:00:41.9]} 23. Be3 {[%clk 0:02:07.5]} 23... Ne5
{[%clk 0:00:42.4]} 24. Ke2 {[%clk 0:02:07.7]} 24... Nc4 {[%clk 0:00:42.7]} 25.
Bc1 {[%clk 0:02:08.1]} 25... b5 {[%clk 0:00:43.5]} 26. h4 {[%clk 0:01:55.4]}
26... Be5 {[%clk 0:00:43.7]} 27. f4 {[%clk 0:01:52.9]} 27... Bf6 {[%clk
0:00:43.6]} 28. h5 {[%clk 0:01:46.8]} 28... b4 {[%clk 0:00:43.2]} 29. cxb4
{[%clk 0:01:47.2]} 29... Nxb2 {[%clk 0:00:40.3]} 30. Bb3 {[%clk 0:01:47.4]}
30... Nc4 {[%clk 0:00:35.5]} 31. g4 {[%clk 0:01:47.9]} 31... Bc3 {[%clk
0:00:31]} 32. a3 {[%clk 0:01:45.9]} 32... a5 {[%clk 0:00:28.8]} 33. Bxc4 {[%clk
0:01:33.8]} 33... Rxc4 {[%clk 0:00:28.3]} 34. Kd3 {[%clk 0:01:34.5]} 34... Rc8
{[%clk 0:00:27.7]} 35. b5 {[%clk 0:01:35.1]} 35... a4 {[%clk 0:00:22.2]} 36. Be3
{[%clk 0:01:33.9]} 36... Ba5 {[%clk 0:00:21.9]} 37. b6 {[%clk 0:01:34.5]} 37...
Rc3+ {[%clk 0:00:20.2]} 38. Ke4 {[%clk 0:01:34]} 38... Rxe3+ {[%clk 0:00:19.5]}
39. Kd4 {[%clk 0:01:24.8]} 39... Bxb6+ {[%clk 0:00:20.4]} 40. Kc4 {[%clk
0:01:25.6]} 40... Re4+ {[%clk 0:00:20.8]} 41. Kb5 {[%clk 0:01:26.5]} 41... Bxg1
{[%clk 0:00:20.7]} 0-1

[Event "Early-Titled-Tuesday-Blitz-October-17-2023"]
[Site "Chess.com"]
[Date "2023.10.17"]
[Round "3"]
[White "js20000"]
[Black "SlavenPastar"]
[Result "1-0"]
[WhiteElo "2882"]
[BlackElo "2656"]
[TimeControl "180+1"]
[EndTime "8:28:15 PDT"]
[Termination "js20000 won on time"]

1. Nf3 {[%clk 0:03:00.9]} 1... b6 {[%clk 0:03:00.2]} 2. e4 {[%clk 0:02:59.7]}
2... Bb7 {[%clk 0:03:00.9]} 3. Nc3 {[%clk 0:02:59.7]} 3... e6 {[%clk 0:03:01.3]}
4. d4 {[%clk 0:02:59.9]} 4... Bb4 {[%clk 0:03:02]} 5. Nd2 {[%clk 0:03:00]} 5...
c5 {[%clk 0:02:57.5]} 6. a3 {[%clk 0:02:56.3]} 6... Bxc3 {[%clk 0:02:53.6]} 7.
bxc3 {[%clk 0:02:57.2]} 7... Nf6 {[%clk 0:02:52.3]} 8. e5 {[%clk 0:02:55.9]}
8... Ne4 {[%clk 0:02:44.2]} 9. Qg4 {[%clk 0:02:54.9]} 9... Qg5 {[%clk
0:02:43.8]} 10. Qxg5 {[%clk 0:02:53.7]} 10... Nxg5 {[%clk 0:02:44.7]} 11. Nc4
{[%clk 0:02:53.6]} 11... Ne4 {[%clk 0:02:43.9]} 12. f3 {[%clk 0:02:53.4]} 12...
d5 {[%clk 0:02:32.2]} 13. exd6 {[%clk 0:02:43]} 13... Nxc3 {[%clk 0:02:26.9]}
14. dxc5 {[%clk 0:02:42.7]} 14... bxc5 {[%clk 0:02:27.8]} 15. Bb2 {[%clk
0:02:39]} 15... Nd5 {[%clk 0:01:52.4]} 16. Bxg7 {[%clk 0:02:37.9]} 16... Rg8
{[%clk 0:01:52.3]} 17. Be5 {[%clk 0:02:33.2]} 17... Nd7 {[%clk 0:01:46.4]} 18.
Bg3 {[%clk 0:02:32.9]} 18... f5 {[%clk 0:01:42.9]} 19. Na5 {[%clk 0:02:30.7]}
19... Rb8 {[%clk 0:01:31.5]} 20. Rb1 {[%clk 0:02:14.8]} 20... Ba8 {[%clk
0:01:30.8]} 21. Rxb8+ {[%clk 0:02:15.7]} 21... Nxb8 {[%clk 0:01:30.6]} 22. Bb5+
{[%clk 0:02:16.3]} 22... Nd7 {[%clk 0:01:31]} 23. O-O {[%clk 0:02:16.2]} 23...
f4 {[%clk 0:01:25.8]} 24. Bf2 {[%clk 0:02:14.7]} 24... Ne3 {[%clk 0:01:05.2]}
25. Bxe3 {[%clk 0:02:14.2]} 25... fxe3 {[%clk 0:01:06.1]} 26. Kh1 {[%clk
0:02:04.3]} 26... Rg5 {[%clk 0:00:57.4]} 27. Re1 {[%clk 0:02:02.3]} 27... Rd5
{[%clk 0:00:44.8]} 28. Nc4 {[%clk 0:02:00.3]} 28... Kd8 {[%clk 0:00:38.6]} 29.
Kg1 {[%clk 0:01:55.5]} 29... Nb6 {[%clk 0:00:22]} 30. Nxb6 {[%clk 0:01:49.7]}
30... axb6 {[%clk 0:00:21.5]} 31. d7 {[%clk 0:01:49.9]} 31... Rd6 {[%clk
0:00:19.1]} 32. Rxe3 {[%clk 0:01:48.2]} 32... Bc6 {[%clk 0:00:19.7]} 33. Bxc6
{[%clk 0:01:47.3]} 33... Rxc6 {[%clk 0:00:20.6]} 34. Re5 {[%clk 0:01:44.8]}
34... Rd6 {[%clk 0:00:16.5]} 35. Kf2 {[%clk 0:01:42.3]} 35... Rd2+ {[%clk
0:00:15.2]} 36. Re2 {[%clk 0:01:42]} 36... Rd6 {[%clk 0:00:14.6]} 37. Ke3 {[%clk
0:01:41.2]} 37... Kxd7 {[%clk 0:00:13.9]} 38. Rd2 {[%clk 0:01:41.3]} 38... Rd5
{[%clk 0:00:14]} 39. c4 {[%clk 0:01:40.2]} 39... Rxd2 {[%clk 0:00:09.4]} 40.
Kxd2 {[%clk 0:01:41.1]} 40... Kd6 {[%clk 0:00:09.8]} 41. f4 {[%clk 0:01:40.5]}
41... e5 {[%clk 0:00:07.5]} 42. Ke3 {[%clk 0:01:38.9]} 42... exf4+ {[%clk
0:00:05.6]} 43. Kxf4 {[%clk 0:01:39.8]} 43... Kc6 {[%clk 0:00:05]} 44. a4 {[%clk
0:01:39.5]} 1-0

[Event "Early-Titled-Tuesday-Blitz-October-17-2023"]
[Site "Chess.com"]
[Date "2023.10.17"]
[Round "3"]
[White "angryspacevoid"]
[Black "nitpicker"]
[Result "1-0"]
[WhiteElo "2507"]
[BlackElo "2254"]
[TimeControl "180+1"]
[EndTime "8:28:17 PDT"]
[Termination "angryspacevoid won on time"]

1. e4 {[%clk 0:03:00.9]} 1... c5 {[%clk 0:02:58.8]} 2. Ke2 {[%clk 0:03:00.8]}
2... d5 {[%clk 0:02:52.5]} 3. d3 {[%clk 0:02:59.9]} 3... Nc6 {[%clk 0:02:49.2]}
4. c3 {[%clk 0:02:55.4]} 4... Nf6 {[%clk 0:02:44]} 5. f3 {[%clk 0:02:55.3]} 5...
e5 {[%clk 0:02:26.8]} 6. h3 {[%clk 0:02:48.9]} 6... Be7 {[%clk 0:02:18.7]} 7. g4
{[%clk 0:02:47.5]} 7... O-O {[%clk 0:02:10.8]} 8. Nd2 {[%clk 0:02:35.6]} 8... b6
{[%clk 0:02:07.3]} 9. Kf2 {[%clk 0:02:30.6]} 9... Bb7 {[%clk 0:01:58.6]} 10. Ne2
{[%clk 0:02:25.2]} 10... Qd7 {[%clk 0:01:45.8]} 11. Ng3 {[%clk 0:02:21.4]} 11...
dxe4 {[%clk 0:01:31.3]} 12. Ndxe4 {[%clk 0:02:11.1]} 12... Nxe4+ {[%clk
0:01:22.6]} 13. fxe4 {[%clk 0:02:09.1]} 13... Bh4 {[%clk 0:01:19.6]} 14. Kg2
{[%clk 0:02:03.8]} 14... g6 {[%clk 0:01:15.5]} 15. Be2 {[%clk 0:02:00.2]} 15...
f5 {[%clk 0:01:05.9]} 16. gxf5 {[%clk 0:01:55.6]} 16... gxf5 {[%clk 0:01:04.7]}
17. Bf3 {[%clk 0:01:49.2]} 17... Bxg3 {[%clk 0:00:49.6]} 18. Kxg3 {[%clk
0:01:47]} 18... Kh8 {[%clk 0:00:48.3]} 19. Kh2 {[%clk 0:01:33.9]} 19... Rad8
{[%clk 0:00:45.6]} 20. Bg5 {[%clk 0:01:29.7]} 20... Rde8 {[%clk 0:00:39.2]} 21.
Bh6 {[%clk 0:01:28.8]} 21... Rf6 {[%clk 0:00:36.2]} 22. Qd2 {[%clk 0:01:25.3]}
22... Ree6 {[%clk 0:00:29.9]} 23. Bg5 {[%clk 0:01:12]} 23... Rg6 {[%clk
0:00:29.9]} 24. exf5 {[%clk 0:01:10]} 24... Qf7 {[%clk 0:00:20.6]} 25. fxg6
{[%clk 0:01:01.6]} 25... Qxf3 {[%clk 0:00:19.7]} 26. Raf1 {[%clk 0:01:01.6]}
26... Qh5 {[%clk 0:00:16.8]} 27. Rf8+ {[%clk 0:00:56.7]} 27... Kg7 {[%clk
0:00:16]} 28. Rf7+ {[%clk 0:00:57]} 28... Kxg6 {[%clk 0:00:15.1]} 29. Rxb7
{[%clk 0:00:56.3]} 1-0

[Event "Early-Titled-Tuesday-Blitz-October-17-2023"]
[Site "Chess.com"]
[Date "2023.10.17"]
[Round "3"]
[White "pineapplepenn"]
[Black "Nf3c5"]
[Result "0-1"]
[WhiteElo "2422"]
[BlackElo "2603"]
[TimeControl "180+1"]
[EndTime "8:28:21 PDT"]
[Termination "Nf3c5 won on time"]

1. d4 {[%clk 0:02:57.1]} 1... Nf6 {[%clk 0:02:57.5]} 2. Bf4 {[%clk 0:02:55.8]}
2... g6 {[%clk 0:02:56.8]} 3. Nc3 {[%clk 0:02:55.1]} 3... d5 {[%clk 0:02:55.7]}
4. e3 {[%clk 0:02:53.8]} 4... Bg7 {[%clk 0:02:55.6]} 5. h4 {[%clk 0:02:54.2]}
5... h5 {[%clk 0:02:55]} 6. Nf3 {[%clk 0:02:53.2]} 6... O-O {[%clk 0:02:55]} 7.
Ne5 {[%clk 0:02:45.9]} 7... c5 {[%clk 0:02:54.6]} 8. dxc5 {[%clk 0:02:28.2]}
8... Qa5 {[%clk 0:02:48.2]} 9. Qd4 {[%clk 0:02:17.2]} 9... Ng4 {[%clk
0:02:45.5]} 10. b4 {[%clk 0:02:11]} 10... Qa3 {[%clk 0:02:09.9]} 11. Nb5 {[%clk
0:01:54.8]} 11... Qa4 {[%clk 0:02:06.8]} 12. Nc3 {[%clk 0:01:50.9]} 12... Qxc2
{[%clk 0:01:55.2]} 13. Nd1 {[%clk 0:00:22.4]} 13... Bxe5 {[%clk 0:01:41.1]} 14.
Bxe5 {[%clk 0:00:18.7]} 14... Nc6 {[%clk 0:01:41.7]} 15. Qc3 {[%clk 0:00:17.6]}
15... Qa4 {[%clk 0:01:19]} 16. Bf4 {[%clk 0:00:14.3]} 16... e5 {[%clk
0:01:17.4]} 17. Bg3 {[%clk 0:00:13]} 17... d4 {[%clk 0:01:17.7]} 18. Qb3 {[%clk
0:00:12.6]} 18... Qxb4+ {[%clk 0:01:16.8]} 19. Qxb4 {[%clk 0:00:12.1]} 19...
Nxb4 {[%clk 0:01:17.7]} 20. Rb1 {[%clk 0:00:11]} 20... Nxa2 {[%clk 0:01:10]} 21.
Bc4 {[%clk 0:00:09]} 21... Nc3 {[%clk 0:01:09.5]} 22. Nxc3 {[%clk 0:00:09.5]}
22... dxc3 {[%clk 0:01:10.4]} 23. Rc1 {[%clk 0:00:08.7]} 23... Bd7 {[%clk
0:01:03.9]} 24. Rxc3 {[%clk 0:00:08.3]} 24... Rac8 {[%clk 0:01:04.5]} 25. Bd5
{[%clk 0:00:07.4]} 25... Bc6 {[%clk 0:01:04.8]} 26. e4 {[%clk 0:00:07.8]} 26...
Rfd8 {[%clk 0:01:02.9]} 0-1

[Event "Early-Titled-Tuesday-Blitz-October-17-2023"]
[Site "Chess.com"]
[Date "2023.10.17"]
[Round "3"]
[White "Ermito2020"]
[Black "invisible_s0ul"]
[Result "1-0"]
[WhiteElo "2590"]
[BlackElo "2274"]
[TimeControl "180+1"]
[EndTime "8:28:28 PDT"]
[Termination "Ermito2020 won by checkmate"]

1. e4 {[%clk 0:03:00.9]} 1... c5 {[%clk 0:02:59]} 2. Nf3 {[%clk 0:03:00.7]} 2...
d6 {[%clk 0:02:59]} 3. d4 {[%clk 0:03:00.1]} 3... cxd4 {[%clk 0:02:59.9]} 4.
Nxd4 {[%clk 0:03:01]} 4... Nf6 {[%clk 0:03:00.4]} 5. Nc3 {[%clk 0:03:01.7]} 5...
a6 {[%clk 0:03:00.8]} 6. Bg5 {[%clk 0:03:00.6]} 6... e6 {[%clk 0:02:53.1]} 7.
Qf3 {[%clk 0:03:01]} 7... Nbd7 {[%clk 0:02:46.5]} 8. O-O-O {[%clk 0:03:00.8]}
8... Be7 {[%clk 0:02:40.8]} 9. g4 {[%clk 0:02:59.6]} 9... Ne5 {[%clk 0:02:34]}
10. Qg3 {[%clk 0:02:59]} 10... Nexg4 {[%clk 0:02:11.2]} 11. f4 {[%clk
0:02:35.3]} 11... e5 {[%clk 0:01:21.7]} 12. Nf5 {[%clk 0:02:29.2]} 12... Bxf5
{[%clk 0:01:10.6]} 13. exf5 {[%clk 0:02:30.1]} 13... exf4 {[%clk 0:01:11.2]} 14.
Bxf4 {[%clk 0:02:25.2]} 14... O-O {[%clk 0:00:57.5]} 15. h3 {[%clk 0:02:15.1]}
15... Nh5 {[%clk 0:00:30.4]} 16. Qxg4 {[%clk 0:02:12.8]} 16... Nxf4 {[%clk
0:00:31]} 17. Rg1 {[%clk 0:02:13.4]} 17... Ng6 {[%clk 0:00:20.5]} 18. fxg6
{[%clk 0:02:11.6]} 18... fxg6 {[%clk 0:00:19.6]} 19. Nd5 {[%clk 0:02:03]} 19...
Bf6 {[%clk 0:00:16.1]} 20. Nxf6+ {[%clk 0:01:58.2]} 20... Qxf6 {[%clk 0:00:17]}
21. Bc4+ {[%clk 0:01:55.1]} 21... Kh8 {[%clk 0:00:16.8]} 22. Kb1 {[%clk
0:01:55.9]} 22... b5 {[%clk 0:00:14.5]} 23. Rgf1 {[%clk 0:01:49.5]} 23... Qe7
{[%clk 0:00:08]} 24. Qe6 {[%clk 0:01:46.6]} 24... Qc7 {[%clk 0:00:03.8]} 25. Bb3
{[%clk 0:01:39.7]} 25... a5 {[%clk 0:00:03.5]} 26. a3 {[%clk 0:01:33.2]} 26...
a4 {[%clk 0:00:03.9]} 27. Ba2 {[%clk 0:01:33.1]} 27... Rac8 {[%clk 0:00:03.1]}
28. c3 {[%clk 0:01:31.1]} 28... Rfd8 {[%clk 0:00:01.7]} 29. Rf7 {[%clk
0:01:27.9]} 29... Qc6 {[%clk 0:00:01.7]} 30. Rdf1 {[%clk 0:01:26.3]} 30... Rg8
{[%clk 0:00:02.1]} 31. Bd5 {[%clk 0:01:15]} 31... Rce8 {[%clk 0:00:01.6]} 32.
Bxc6 {[%clk 0:01:10.1]} 32... Rxe6 {[%clk 0:00:02.3]} 33. Rf8 {[%clk 0:01:11]}
33... Rxf8 {[%clk 0:00:02.2]} 34. Rxf8# {[%clk 0:01:09.6]} 1-0

[Event "Early-Titled-Tuesday-Blitz-October-17-2023"]
[Site "Chess.com"]
[Date "2023.10.17"]
[Round "3"]
[White "azikom"]
[Black "CuattroPrincesses"]
[Result "1-0"]
[WhiteElo "2621"]
[BlackElo "2281"]
[TimeControl "180+1"]
[EndTime "8:28:30 PDT"]
[Termination "azikom won on time"]

1. e4 {[%clk 0:02:58.9]} 1... c5 {[%clk 0:02:58.8]} 2. Nc3 {[%clk 0:02:59]} 2...
d6 {[%clk 0:02:58.5]} 3. g3 {[%clk 0:02:59.9]} 3... g6 {[%clk 0:02:56.9]} 4. Bg2
{[%clk 0:03:00.8]} 4... Bg7 {[%clk 0:02:57.1]} 5. d3 {[%clk 0:03:01.3]} 5... Nc6
{[%clk 0:02:55.6]} 6. h4 {[%clk 0:03:02]} 6... h6 {[%clk 0:02:53.3]} 7. Nge2
{[%clk 0:03:00.7]} 7... e5 {[%clk 0:02:52.2]} 8. h5 {[%clk 0:02:57.3]} 8... g5
{[%clk 0:02:50.1]} 9. f4 {[%clk 0:02:57.5]} 9... Bg4 {[%clk 0:02:30]} 10. fxe5
{[%clk 0:02:44.4]} 10... Nxe5 {[%clk 0:02:20.6]} 11. Be3 {[%clk 0:02:44]} 11...
Nf6 {[%clk 0:01:50.4]} 12. Qd2 {[%clk 0:02:43.3]} 12... Qa5 {[%clk 0:01:36.7]}
13. O-O-O {[%clk 0:02:40.7]} 13... O-O-O {[%clk 0:01:23.3]} 14. Kb1 {[%clk
0:02:40.6]} 14... Bxh5 {[%clk 0:01:14.3]} 15. Rdf1 {[%clk 0:02:38.3]} 15... Bg6
{[%clk 0:01:07]} 16. Qc1 {[%clk 0:02:30.2]} 16... Nfg4 {[%clk 0:00:58.8]} 17.
Bd2 {[%clk 0:02:29.9]} 17... Qa6 {[%clk 0:00:51.7]} 18. Bh3 {[%clk 0:02:21.6]}
18... Kb8 {[%clk 0:00:50.7]} 19. Qd1 {[%clk 0:02:13.1]} 19... Rhf8 {[%clk
0:00:45]} 20. Nc1 {[%clk 0:02:11.9]} 20... h5 {[%clk 0:00:33.2]} 21. Bxg5 {[%clk
0:02:03.4]} 21... f6 {[%clk 0:00:30.8]} 22. Bf4 {[%clk 0:02:01]} 22... Qc6
{[%clk 0:00:29.5]} 23. Nd5 {[%clk 0:01:57.3]} 23... Rf7 {[%clk 0:00:27.5]} 24.
Bg2 {[%clk 0:01:55.9]} 24... a6 {[%clk 0:00:21]} 25. a3 {[%clk 0:01:53.7]} 25...
Ka7 {[%clk 0:00:20]} 26. Nb3 {[%clk 0:01:49.6]} 26... Rdf8 {[%clk 0:00:19.6]}
27. Ne3 {[%clk 0:01:32.6]} 27... Qd7 {[%clk 0:00:14.1]} 28. Nxg4 {[%clk
0:01:26.3]} 28... Nxg4 {[%clk 0:00:13.8]} 29. d4 {[%clk 0:01:24]} 29... c4
{[%clk 0:00:13.5]} 30. Nc1 {[%clk 0:01:22.5]} 30... Qb5 {[%clk 0:00:12.4]} 31.
Na2 {[%clk 0:01:21.6]} 31... Re8 {[%clk 0:00:10.7]} 32. Nc3 {[%clk 0:01:22.1]}
32... Qa5 {[%clk 0:00:08.1]} 33. Qd2 {[%clk 0:01:07.4]} 33... Rfe7 {[%clk
0:00:08]} 34. Bxd6 {[%clk 0:01:06.3]} 1-0

[Event "Early-Titled-Tuesday-Blitz-October-17-2023"]
[Site "Chess.com"]
[Date "2023.10.17"]
[Round "3"]
[White "GeorgiosSouleidis"]
[Black "AvitalBor"]
[Result "0-1"]
[WhiteElo "2630"]
[BlackElo "2827"]
[TimeControl "180+1"]
[EndTime "8:28:32 PDT"]
[Termination "AvitalBor won by resignation"]

1. e4 {[%clk 0:03:00.9]} 1... e6 {[%clk 0:02:54.7]} 2. d4 {[%clk 0:03:01]} 2...
d5 {[%clk 0:02:55.6]} 3. Nc3 {[%clk 0:03:01.5]} 3... Bb4 {[%clk 0:02:51.8]} 4.
Ne2 {[%clk 0:03:01]} 4... dxe4 {[%clk 0:02:48.5]} 5. a3 {[%clk 0:03:01]} 5...
Bxc3+ {[%clk 0:02:48.6]} 6. Nxc3 {[%clk 0:03:01.9]} 6... Nf6 {[%clk 0:02:47]} 7.
Bg5 {[%clk 0:03:01.3]} 7... Nbd7 {[%clk 0:02:45.6]} 8. Nxe4 {[%clk 0:02:59.4]}
8... h6 {[%clk 0:02:46]} 9. Nxf6+ {[%clk 0:02:59.7]} 9... Nxf6 {[%clk
0:02:46.7]} 10. Bxf6 {[%clk 0:02:55]} 10... Qxf6 {[%clk 0:02:46.6]} 11. Bd3
{[%clk 0:02:51.6]} 11... O-O {[%clk 0:02:42.4]} 12. O-O {[%clk 0:02:51.6]} 12...
Rd8 {[%clk 0:02:37.4]} 13. c3 {[%clk 0:02:51.7]} 13... Bd7 {[%clk 0:02:31]} 14.
Qe2 {[%clk 0:02:51.1]} 14... Bc6 {[%clk 0:02:30.8]} 15. Be4 {[%clk 0:02:51.3]}
15... Bxe4 {[%clk 0:02:30.2]} 16. Qxe4 {[%clk 0:02:52.2]} 16... c6 {[%clk
0:02:28]} 17. Rfe1 {[%clk 0:02:47.7]} 17... Rd5 {[%clk 0:02:27.5]} 18. Re3
{[%clk 0:02:43.8]} 18... Rad8 {[%clk 0:02:25.8]} 19. Rae1 {[%clk 0:02:43.4]}
19... a5 {[%clk 0:02:20.5]} 20. Rf3 {[%clk 0:02:38.5]} 20... Qe7 {[%clk
0:02:19.2]} 21. h3 {[%clk 0:02:34.2]} 21... Rb5 {[%clk 0:02:16.2]} 22. Re2
{[%clk 0:02:33.5]} 22... Qg5 {[%clk 0:02:05.7]} 23. Kh2 {[%clk 0:02:17.3]} 23...
Rbd5 {[%clk 0:01:56]} 24. Rg3 {[%clk 0:02:14.2]} 24... Qf5 {[%clk 0:01:54.7]}
25. Qxf5 {[%clk 0:02:09]} 25... Rxf5 {[%clk 0:01:55.6]} 26. Rge3 {[%clk
0:02:08.6]} 26... Rfd5 {[%clk 0:01:52.5]} 27. f4 {[%clk 0:02:06.4]} 27... c5
{[%clk 0:01:49.6]} 28. dxc5 {[%clk 0:02:06.4]} 28... Rxc5 {[%clk 0:01:50.5]} 29.
g4 {[%clk 0:02:06.1]} 29... Kf8 {[%clk 0:01:47.2]} 30. Kg3 {[%clk 0:02:05.5]}
30... b6 {[%clk 0:01:47.5]} 31. Kf3 {[%clk 0:02:05.6]} 31... h5 {[%clk
0:01:46.7]} 32. a4 {[%clk 0:01:59.6]} 32... g6 {[%clk 0:01:45.2]} 33. Re5 {[%clk
0:01:58.1]} 33... Rxe5 {[%clk 0:01:42]} 34. Rxe5 {[%clk 0:01:57.7]} 34... Rd3+
{[%clk 0:01:39.1]} 35. Re3 {[%clk 0:01:57.9]} 35... hxg4+ {[%clk 0:01:38.6]} 36.
hxg4 {[%clk 0:01:58]} 36... Rd2 {[%clk 0:01:37.3]} 37. Re5 {[%clk 0:01:54.7]}
37... Rxb2 {[%clk 0:01:34.3]} 38. Ke3 {[%clk 0:01:34.3]} 38... Ke7 {[%clk
0:01:33.3]} 39. Kd3 {[%clk 0:01:32.5]} 39... Kd6 {[%clk 0:01:29.2]} 40. Re4
{[%clk 0:01:29]} 40... f6 {[%clk 0:01:27]} 41. Rd4+ {[%clk 0:01:27.8]} 41... Ke7
{[%clk 0:01:26]} 42. Rc4 {[%clk 0:01:27.8]} 42... Rg2 {[%clk 0:01:25.8]} 43. g5
{[%clk 0:01:19.8]} 43... fxg5 {[%clk 0:01:22.2]} 44. fxg5 {[%clk 0:01:20.7]}
44... Rxg5 {[%clk 0:01:19.2]} 45. Rc6 {[%clk 0:01:13.9]} 45... Rd5+ {[%clk
0:01:18.8]} 46. Ke4 {[%clk 0:01:10.7]} 46... Rc5 {[%clk 0:01:04.4]} 47. Rxb6
{[%clk 0:01:10.8]} 47... Rxc3 {[%clk 0:01:04.5]} 48. Kd4 {[%clk 0:01:05.5]}
48... Rf3 {[%clk 0:00:58.6]} 49. Ra6 {[%clk 0:01:00.3]} 49... Rf4+ {[%clk
0:00:56.3]} 50. Ke5 {[%clk 0:01:00.7]} 50... Rf5+ {[%clk 0:00:56.4]} 51. Ke4
{[%clk 0:00:58.6]} 51... g5 {[%clk 0:00:55.9]} 0-1

[Event "Early-Titled-Tuesday-Blitz-October-17-2023"]
[Site "Chess.com"]
[Date "2023.10.17"]
[Round "3"]
[White "PeshkaCh"]
[Black "Doomfist26"]
[Result "1-0"]
[WhiteElo "2822"]
[BlackElo "2629"]
[TimeControl "180+1"]
[EndTime "8:28:38 PDT"]
[Termination "PeshkaCh won by resignation"]

1. Nf3 {[%clk 0:03:00.9]} 1... Nf6 {[%clk 0:02:48.9]} 2. d4 {[%clk 0:03:01.4]}
2... g6 {[%clk 0:02:49.1]} 3. g3 {[%clk 0:03:01.6]} 3... Bg7 {[%clk 0:02:49.7]}
4. Bg2 {[%clk 0:03:02.3]} 4... c5 {[%clk 0:02:50.4]} 5. c4 {[%clk 0:03:01.9]}
5... cxd4 {[%clk 0:02:50.6]} 6. Nxd4 {[%clk 0:03:02.8]} 6... h5 {[%clk
0:02:50.8]} 7. h3 {[%clk 0:02:57.5]} 7... Nc6 {[%clk 0:02:47.2]} 8. Nc3 {[%clk
0:02:55.8]} 8... O-O {[%clk 0:02:47]} 9. O-O {[%clk 0:02:53.2]} 9... d6 {[%clk
0:02:46.5]} 10. Nb3 {[%clk 0:02:40.6]} 10... Bd7 {[%clk 0:02:30.2]} 11. c5
{[%clk 0:02:40.2]} 11... Ne8 {[%clk 0:02:08.6]} 12. Bf4 {[%clk 0:02:34.9]} 12...
Qc8 {[%clk 0:02:02.9]} 13. Kh2 {[%clk 0:02:28.5]} 13... e5 {[%clk 0:01:51.4]}
14. Be3 {[%clk 0:02:28.3]} 14... f5 {[%clk 0:01:51]} 15. f4 {[%clk 0:02:15.2]}
15... exf4 {[%clk 0:01:45.6]} 16. Bxf4 {[%clk 0:02:14.8]} 16... Kh7 {[%clk
0:01:35.2]} 17. cxd6 {[%clk 0:02:12.2]} 17... Nf6 {[%clk 0:01:29.6]} 18. Nc5
{[%clk 0:02:08]} 18... b6 {[%clk 0:01:27.1]} 19. Nxd7 {[%clk 0:02:07.2]} 19...
Qxd7 {[%clk 0:01:27.6]} 20. Nd5 {[%clk 0:02:06.1]} 20... Ne4 {[%clk 0:01:21.6]}
21. Nc7 {[%clk 0:01:32]} 21... Rac8 {[%clk 0:01:19.1]} 22. Qa4 {[%clk
0:01:16.9]} 22... Bxb2 {[%clk 0:01:04.9]} 23. Rab1 {[%clk 0:01:16.9]} 23... Bg7
{[%clk 0:00:53.4]} 24. Rbc1 {[%clk 0:01:15.2]} 24... Ne5 {[%clk 0:00:49.4]} 25.
Qxd7 {[%clk 0:01:04.4]} 25... Nxd7 {[%clk 0:00:49.6]} 26. Ne6 {[%clk 0:01:04.4]}
26... Rfe8 {[%clk 0:00:50.2]} 27. Bxe4 {[%clk 0:00:42]} 27... fxe4 {[%clk
0:00:33.3]} 28. Rc7 {[%clk 0:00:41.6]} 28... Rxc7 {[%clk 0:00:17.6]} 29. dxc7
{[%clk 0:00:42.5]} 29... Rc8 {[%clk 0:00:17.1]} 30. Rd1 {[%clk 0:00:41.3]} 1-0